Workbook

Sheet TASCHENRECHNER
C2: BELEUCHTUNGSINVESTITION & BETRIEBSKOSTENRECHNER *
C5: VARIABLEN DES BELEUCHTUNGSPROJEKTS
C8: RAUM | N8: BETRIEBSFÄHİG
C9: BREITE | D9: LÄNGE | E9: HÖHE mt. | J9: OBERFLÄCHENREFLEKTANZEN | M9: INDEX | N9: BERECHNUNGSZEITRAUM | Q9: ZIELBELEUCHTUNGSPEGEL | U9: ARBEITSTAGE PRO JAHR | Y9: DURCHSCHNITTLICHE BELEUCHTUNGSSTUNDEN PRO TAG | AD9: ENERGIEEINHEITSKOSTEN
C10: METER | D10: METER | E10: ARBEITSFLÄCHE | H10: MONTAGE | J10: DECKE | K10: MAUER | L10: UMHAUEN | M10: RI - K | N10: JAHRE | Q10: LUX ( durchschnitt auf arbeitsebene ) | U10: TAGE | Y10: STUNDE | AD10: EURO / kWh
C11: 9 | D11: 16 | E11: 0.8 | H11: 2.75 | J11: 70 | K11: 50 | L11: 20 | M11: =(C11*D11)/((H11-E11)*(C11+D11)) -> 2.953846154 | N11: 6 | Q11: 400 | U11: 252 | Y11: 6.5 | AD11: 0.25
C12: * Dieser Rechner soll dem Benutzer einen Näherungswert für die optischen und elektrischen Durchschnittsdaten, die Investitions- und Betriebskosten (Energie) der Leuchten und eine geschätzte Kapitalrendite alternativer Beleuchtungssysteme durch Energieeinsparungen im Vergleich zu LIBUS liefern. Die angegebenen Daten (außer denen von LIBUS) können nicht als spezifische Informationen über eine bestimmte Leuchtenmarke bewertet werden.
C13: * Alle weißen Felder in der Tabelle "Variablen" müssen ausgefüllt werden, um die Zieldaten in der nachstehenden Tabelle zu erhalten. Wenn Sie Fragen haben, senden Sie bitte eine E-Mail an project@libuslighting.com. Das LIBUS-Team bietet Ihnen gerne professionelle und kostenlose Projektunterstützung für Leuchten der Marke LIBUS an.
C15: LEUCHTENDATEN | H15: LEUCHTSTOFF | J15: LED-PANEL | M15: LIBUS SBL13WB 600 x 600 / 625 x 625 mm
D16: LEUCHTENFAMILIE | H16: 4 x 18 Watt | I16: 4 x 14 Watt | J16: EDGE-BELEUCHTET | K16: HINTERGRUND BELEUCHTUNG | M16: STANDARD | R16: E-WHITE | W16: E-SILVER | AB16: PERFORMANCE
H17: T26 (T8) | I17: T16 (T5) | J17: UNTERLAGEABDECKUNG | M17: LSS | O17: LSP | R17: LWS | T17: LWP | W17: LES | Y17: LEP | AB17: LPS | AD17: LPP
H18: elektronischer Ballast | J18: opaler diffusor | L18: micro prism | M18: BL | N18: CT | O18: BL | P18: CT | Q18: MC | R18: BL | S18: CT | T18: BL | U18: CT | V18: MC | W18: BL | X18: CT | Y18: BL | Z18: CT | AA18: MC | AB18: BL | AC18: CT | AD18: BL | AE18: CT | AF18: MC
D19: SYSTEMLEISTUNG | F19: : | G19: watt | H19: 81 | I19: 63 | J19: 40 | K19: 35 | L19: 27 | M19: 27 | N19: 27 | O19: 25 | P19: 25 | Q19: 27 | R19: 25 | S19: 25 | T19: 21 | U19: 21 | V19: 25 | W19: 25 | X19: 25 | Y19: 21 | Z19: 21 | AA19: 25 | AB19: 21 | AC19: 21 | AD19: 19 | AE19: 19 | AF19: 21
D20: AKTIVE KRAFT | F20: : | G20: watt | H20: 72 | I20: 56 | J20: 34.4 | K20: 30.275 | L20: 23.598 | M20: 23.598 | N20: 23.598 | O20: 21.85 | P20: 21.85 | Q20: 23.598 | R20: 21.85 | S20: 21.85 | T20: 18.69 | U20: 18.69 | V20: 22.25 | W20: 21.85 | X20: 21.85 | Y20: 18.69 | Z20: 18.69 | AA20: 22.25 | AB20: 18.354 | AC20: 18.354 | AD20: 16.606 | AE20: 16.606 | AF20: 18.354
D21: GESAMT LAMPENFLUSS | F21: : | G21: lumen | H21: 5400 | I21: 5400 | J21: 5504 | K21: 4995.375 | L21: 3893.67 | M21: 3893.67 | N21: 3893.67 | O21: 3714.5 | P21: 3714.5 | Q21: 4011.66 | R21: 3714.5 | S21: 3714.5 | T21: 3270.75 | U21: 3270.75 | V21: 3893.75 | W21: 3714.5 | X21: 3714.5 | Y21: 3270.75 | Z21: 3270.75 | AA21: 3893.75 | AB21: 3303.72 | AC21: 3303.72 | AD21: 3072.11 | AE21: 3072.11 | AF21: 3395.49
D22: LEUCHTE L.O.R. | F22: : | G22: % | H22: 57 | I22: 62 | J22: 61 | K22: 66 | L22: 72.7 | M22: 73.8 | N22: 72.7 | O22: 73.8 | P22: 72.7 | Q22: 72.2 | R22: 87.6 | S22: 86.3 | T22: 87.6 | U22: 86.3 | V22: 85.1 | W22: 86.8 | X22: 85.5 | Y22: 86.8 | Z22: 85.5 | AA22: 84.3 | AB22: 95.3 | AC22: 93.9 | AD22: 95.3 | AE22: 93.9 | AF22: 92.5
D23: LEUCHTE LEUCHTFLUSS | F23: : | G23: lumen | H23: =H21*(H22/100) -> 3078 | I23: =I21*(I22/100) -> 3348 | J23: =J21*(J22/100) -> 3357.44 | K23: =K21*(K22/100) -> 3296.9475 | L23: =L21*(L22/100) -> 2830.69809 | M23: =M21*(M22/100) -> 2873.52846 | N23: =N21*(N22/100) -> 2830.69809 | O23: =O21*(O22/100) -> 2741.301 | P23: 2700.4415 | Q23: 2896.41852 | R23: 3253.902 | S23: 3205.6135 | T23: 2865.177 | U23: 2822.65725 | V23: 3313.58125 | W23: 3224.186 | X23: 3175.8975 | Y23: 2839.011 | Z23: 2796.49125 | AA23: 3282.43125 | AB23: 3148.44516 | AC23: 3102.19308 | AD23: 2927.72083 | AE23: 2884.71129 | AF23: =AF21*(AF22/100) -> 3140.82825
D24: U.F. ID | F24: : | G24: % | H24: 82 | I24: 82 | J24: 76.73 | K24: 75.97 | L24: 83 | M24: 91.2 | N24: 90.7 | O24: 91.6 | P24: 91.06 | Q24: 86.1 | R24: 84.8 | S24: 84.4 | T24: 84.6 | U24: 85.08 | V24: 84.95 | W24: 96.94 | X24: 92.69 | Y24: 93.82 | Z24: 93.02 | AA24: 87.06 | AB24: 93.82 | AC24: 89.8 | AD24: 93.8 | AE24: 93 | AF24: 84.4
D25: EFFEKTIVER LEUCHTFLUSS | F25: : | G25: lumen | H25: =H23*(H24/100) -> 2523.96 | I25: =I23*(I24/100) -> 2745.36 | J25: 2576.163712 | K25: 2504.691016 | L25: 2349.479415 | M25: 2620.657956 | N25: 2567.443168 | O25: 2511.031716 | P25: 2459.02203 | Q25: 2493.816346 | R25: 2759.308896 | S25: 2705.537794 | T25: 2423.939742 | U25: 2401.516788 | V25: 2814.887272 | W25: 3125.525908 | X25: 2943.739393 | Y25: 2663.56012 | Z25: 2601.296161 | AA25: 2857.684646 | AB25: =AB23*(AB24/100) -> 2953.871249 | AC25: 2785.769386 | AD25: 2746.202139 | AE25: 2682.7815 | AF25: 2650.859043
D26: UGR ID | F26: : | G26: < | H26: 15-17 | I26: 15-17 | J26: 18-19 | K26: 19-21 | L26: 18-19 | M26: 8.9 | N26: 8.9 | O26: 9.5 | P26: 9.4 | Q26: 11.7 | R26: 13 | S26: 13.5 | T26: 13.5 | U26: 13.2 | V26: 12.7 | W26: 8.1 | X26: 8.8 | Y26: 8.2 | Z26: 8.6 | AA26: 10.9 | AB26: 8.2 | AC26: 8.5 | AD26: 8.6 | AE26: 8.6 | AF26: 11
D27: WIRKSAMKEIT | F27: : | G27: lm / w | H27: =H23/H19 -> 38 | I27: =I23/I19 -> 53.14285714 | J27: =J23/J19 -> 83.936 | K27: =K23/K19 -> 94.1985 | L27: 115 | M27: 116 | N27: 115 | O27: 126 | P27: 125 | Q27: 119 | R27: 135 | S27: 133 | T27: 147 | U27: 145 | V27: 138 | W27: 134 | X27: 133 | Y27: 145 | Z27: 144 | AA27: 137 | AB27: 156 | AC27: 156 | AD27: 169 | AE27: 169 | AF27: 160
D28: LLF : light loss factor = | H28: 0.8 | I28: 0.81 | J28: 0.75 | K28: 0.85 | L28: 0.865 | M28: 0.88 | N28: 0.89 | O28: 0.88 | P28: 0.89 | Q28: 0.89 | R28: =M28+0.01 -> 0.89 | S28: =N28+0.01 -> 0.9 | T28: 0.89 | U28: 0.9 | V28: 0.9 | W28: 0.89 | X28: 0.9 | Y28: 0.89 | Z28: 0.9 | AA28: 0.9 | AB28: =W28+0.01 -> 0.9 | AC28: =X28+0.01 -> 0.91 | AD28: 0.9 | AE28: 0.91 | AF28: 0.91
D29: n : no.of lamps / luminaire = | H29: 4 | I29: 4 | J29: 120 | K29: 169 | L29: 169 | M29: 169 | N29: 169 | O29: 169 | P29: 169 | Q29: 169 | R29: 169 | S29: 169 | T29: 169 | U29: 169 | V29: 169 | W29: 169 | X29: 169 | Y29: 169 | Z29: 169 | AA29: 169 | AB29: 169 | AC29: 169 | AD29: 169 | AE29: 169 | AF29: 169
D30: F : luminous flux per lamp = (initial values) | H30: =H23/H29 -> 769.5 | I30: =I23/I29 -> 837 | J30: 27.97866667 | K30: 19.50856509 | L30: 16.74969284 | M30: 17.00312698 | N30: 16.74969284 | O30: 16.22071598 | P30: 15.97894379 | Q30: 17.13857112 | R30: 19.25385799 | S30: 18.96812722 | T30: 16.95371006 | U30: 16.70211391 | V30: 19.60698964 | W30: 19.07802367 | X30: 18.7922929 | Y30: 16.79888166 | Z30: 16.5472855 | AA30: 19.42267012 | AB30: 18.62985302 | AC30: 18.35617207 | AD30: 17.32379189 | AE30: 17.06929757 | AF30: =AF23/AF29 -> 18.58478254
D31: UF : RI = 2.0 / C:70 - W:50 - F:20 = | H31: 0.912578 | I31: 0.912578 | J31: 0.823546 | K31: 0.84547013 | L31: 0.92 | M31: 1 | N31: 1 | O31: 1 | P31: 1 | Q31: 0.96 | R31: 0.95 | S31: 0.95 | T31: 0.95 | U31: 0.95 | V31: 0.95 | W31: 1.04 | X31: 1.01 | Y31: 1.02 | Z31: 1.01 | AA31: 0.96 | AB31: 1.02 | AC31: 0.99 | AD31: 1.02 | AE31: 1.01 | AF31: 0.96

Sheet ERGEBNISSE
B2: GESCHÄTZTE BERECHNUNGSERGEBNISSE FÜR DAS VORGEGEBENE PROJEKT *
B4: =TASCHENRECHNER!N11 -> 6 | C4: JAHRE | G4: LEUCHTSTOFF | I4: LED-PANEL | L4: LIBUS SBL13WB 600 x 600 / 625 x 625 mm
B5: BETRIEBSDAUER | G5: 4 x 18 Watt | H5: 4 x 14 Watt | I5: EDGE - BELEUCHTET | J5: HINTERGRUND BELEUCHTUNG | L5: STANDARD | Q5: E-WHITE | V5: E-SILVER | AA5: PERFORMANCE
B6: LEUCHTENFAMILIE | G6: T26 (T8) | H6: T16 (T5) | I6: UNTERLAGEABDECKUNG | L6: LSS | N6: LSP | Q6: LWS | S6: LWP | V6: LES | X6: LEP | AA6: LPS | AC6: LPP
G7: elektronischer Ballast | I7: opaler diffusor | K7: micro prism | L7: BL | M7: CT | N7: BL | O7: CT | P7: MC | Q7: BL | R7: CT | S7: BL | T7: CT | U7: MC | V7: BL | W7: CT | X7: BL | Y7: CT | Z7: MC | AA7: BL | AB7: CT | AC7: BL | AD7: CT | AE7: MC
B8: ANZAHL DER BENÖTIGTEN LEUCHTEN | F8: STÜCKE | G8: =(TASCHENRECHNER!$Q$11*(TASCHENRECHNER!$C$11*TASCHENRECHNER!$D$11))/(TASCHENRECHNER!H28*(TASCHENRECHNER!H24/100)*TASCHENRECHNER!H23) -> 28.52660106 | H8: =(TASCHENRECHNER!$Q$11*(TASCHENRECHNER!$C$11*TASCHENRECHNER!$D$11))/(TASCHENRECHNER!I28*(TASCHENRECHNER!I24/100)*TASCHENRECHNER!I23) -> 25.90229009 | I8: =(TASCHENRECHNER!$Q$11*(TASCHENRECHNER!$C$11*TASCHENRECHNER!$D$11))/(TASCHENRECHNER!J28*(TASCHENRECHNER!J24/100)*TASCHENRECHNER!J23) -> 29.81176997 | J8: =(TASCHENRECHNER!$Q$11*(TASCHENRECHNER!$C$11*TASCHENRECHNER!$D$11))/(TASCHENRECHNER!K28*(TASCHENRECHNER!K24/100)*TASCHENRECHNER!K23) -> 27.05511596 | K8: =(TASCHENRECHNER!$Q$11*(TASCHENRECHNER!$C$11*TASCHENRECHNER!$D$11))/(TASCHENRECHNER!L28*(TASCHENRECHNER!L24/100)*TASCHENRECHNER!L23) -> 28.34227657 | L8: =(TASCHENRECHNER!$Q$11*(TASCHENRECHNER!$C$11*TASCHENRECHNER!$D$11))/(TASCHENRECHNER!M28*(TASCHENRECHNER!M24/100)*TASCHENRECHNER!M23) -> 24.97637867 | M8: =(TASCHENRECHNER!$Q$11*(TASCHENRECHNER!$C$11*TASCHENRECHNER!$D$11))/(TASCHENRECHNER!N28*(TASCHENRECHNER!N24/100)*TASCHENRECHNER!N23) -> 25.20760807 | N8: =(TASCHENRECHNER!$Q$11*(TASCHENRECHNER!$C$11*TASCHENRECHNER!$D$11))/(TASCHENRECHNER!O28*(TASCHENRECHNER!O24/100)*TASCHENRECHNER!O23) -> 26.0667936 | O8: =(TASCHENRECHNER!$Q$11*(TASCHENRECHNER!$C$11*TASCHENRECHNER!$D$11))/(TASCHENRECHNER!P28*(TASCHENRECHNER!P24/100)*TASCHENRECHNER!P23) -> 26.3190408 | P8: =(TASCHENRECHNER!$Q$11*(TASCHENRECHNER!$C$11*TASCHENRECHNER!$D$11))/(TASCHENRECHNER!Q28*(TASCHENRECHNER!Q24/100)*TASCHENRECHNER!Q23) -> 25.95183131 | Q8: =(TASCHENRECHNER!$Q$11*(TASCHENRECHNER!$C$11*TASCHENRECHNER!$D$11))/(TASCHENRECHNER!R28*(TASCHENRECHNER!R24/100)*TASCHENRECHNER!R23) -> 23.45482277 | R8: =(TASCHENRECHNER!$Q$11*(TASCHENRECHNER!$C$11*TASCHENRECHNER!$D$11))/(TASCHENRECHNER!S28*(TASCHENRECHNER!S24/100)*TASCHENRECHNER!S23) -> 23.65518609 | S8: =(TASCHENRECHNER!$Q$11*(TASCHENRECHNER!$C$11*TASCHENRECHNER!$D$11))/(TASCHENRECHNER!T28*(TASCHENRECHNER!T24/100)*TASCHENRECHNER!T23) -> 26.69996288 | T8: =(TASCHENRECHNER!$Q$11*(TASCHENRECHNER!$C$11*TASCHENRECHNER!$D$11))/(TASCHENRECHNER!U28*(TASCHENRECHNER!U24/100)*TASCHENRECHNER!U23) -> 26.64982411 | U8: =(TASCHENRECHNER!$Q$11*(TASCHENRECHNER!$C$11*TASCHENRECHNER!$D$11))/(TASCHENRECHNER!V28*(TASCHENRECHNER!V24/100)*TASCHENRECHNER!V23) -> 22.73625684 | V8: =(TASCHENRECHNER!$Q$11*(TASCHENRECHNER!$C$11*TASCHENRECHNER!$D$11))/(TASCHENRECHNER!W28*(TASCHENRECHNER!W24/100)*TASCHENRECHNER!W23) -> 20.70662763 | W8: =(TASCHENRECHNER!$Q$11*(TASCHENRECHNER!$C$11*TASCHENRECHNER!$D$11))/(TASCHENRECHNER!X28*(TASCHENRECHNER!X24/100)*TASCHENRECHNER!X23) -> 21.74105499 | X8: =(TASCHENRECHNER!$Q$11*(TASCHENRECHNER!$C$11*TASCHENRECHNER!$D$11))/(TASCHENRECHNER!Y28*(TASCHENRECHNER!Y24/100)*TASCHENRECHNER!Y23) -> 24.29796896 | Y8: =(TASCHENRECHNER!$Q$11*(TASCHENRECHNER!$C$11*TASCHENRECHNER!$D$11))/(TASCHENRECHNER!Z28*(TASCHENRECHNER!Z24/100)*TASCHENRECHNER!Z23) -> 24.60311939 | Z8: =(TASCHENRECHNER!$Q$11*(TASCHENRECHNER!$C$11*TASCHENRECHNER!$D$11))/(TASCHENRECHNER!AA28*(TASCHENRECHNER!AA24/100)*TASCHENRECHNER!AA23) -> 22.39575318 | AA8: =(TASCHENRECHNER!$Q$11*(TASCHENRECHNER!$C$11*TASCHENRECHNER!$D$11))/(TASCHENRECHNER!AB28*(TASCHENRECHNER!AB24/100)*TASCHENRECHNER!AB23) -> 21.66648259 | AB8: =(TASCHENRECHNER!$Q$11*(TASCHENRECHNER!$C$11*TASCHENRECHNER!$D$11))/(TASCHENRECHNER!AC28*(TASCHENRECHNER!AC24/100)*TASCHENRECHNER!AC23) -> 22.72144407 | AC8: =(TASCHENRECHNER!$Q$11*(TASCHENRECHNER!$C$11*TASCHENRECHNER!$D$11))/(TASCHENRECHNER!AD28*(TASCHENRECHNER!AD24/100)*TASCHENRECHNER!AD23) -> 23.3049123 | AD8: =(TASCHENRECHNER!$Q$11*(TASCHENRECHNER!$C$11*TASCHENRECHNER!$D$11))/(TASCHENRECHNER!AE28*(TASCHENRECHNER!AE24/100)*TASCHENRECHNER!AE23) -> 23.59368562 | AE8: =(TASCHENRECHNER!$Q$11*(TASCHENRECHNER!$C$11*TASCHENRECHNER!$D$11))/(TASCHENRECHNER!AF28*(TASCHENRECHNER!AF24/100)*TASCHENRECHNER!AF23) -> 23.87780801
B9: GESCHÄTZTE LEUCHTENKOSTEN | F9: EURO | G9: 40 | H9: 45 | I9: 48 | J9: 48 | K9: 60 | L9: 62 | M9: 67 | N9: 68 | O9: 74 | P9: 86 | Q9: 68 | R9: 73 | S9: 72 | T9: 78 | U9: 91 | V9: 71 | W9: 76 | X9: 75 | Y9: 80 | Z9: 93 | AA9: 86 | AB9: 92 | AC9: 97 | AD9: 102 | AE9: 109
B10: GESAMTLAMPEN INVESTITIONSKOSTEN | G10: =G8*G9 -> 1141.064042 | H10: =H8*H9 -> 1165.603054 | I10: 1430.964959 | J10: 1298.645566 | K10: 1700.536594 | L10: =L8*L9 -> 1548.535477 | M10: 1688.909741 | N10: 1772.541965 | O10: 1947.609019 | P10: 2231.857493 | Q10: 1594.927948 | R10: 1726.828585 | S10: 1922.397327 | T10: 2078.68628 | U10: 2068.999373 | V10: 1470.170562 | W10: 1652.320179 | X10: 1822.347672 | Y10: 1968.249551 | Z10: 2082.805046 | AA10: 1863.317503 | AB10: 2090.372855 | AC10: 2260.576493 | AD10: 2406.555933 | AE10: 2602.681073
B11: JÄHRLICHER ENERGIEVERBRAUCH | F11: kWh | G11: =((G8*TASCHENRECHNER!H19)/1000)*TASCHENRECHNER!$U$11*TASCHENRECHNER!$Y$11 -> 3784.852375 | H11: =((H8*TASCHENRECHNER!I19)/1000)*TASCHENRECHNER!$U$11*TASCHENRECHNER!$Y$11 -> 2672.960923 | I11: =((I8*TASCHENRECHNER!J19)/1000)*TASCHENRECHNER!$U$11*TASCHENRECHNER!$Y$11 -> 1953.267169 | J11: =((J8*TASCHENRECHNER!K19)/1000)*TASCHENRECHNER!$U$11*TASCHENRECHNER!$Y$11 -> 1551.069798 | K11: =((K8*TASCHENRECHNER!L19)/1000)*TASCHENRECHNER!$U$11*TASCHENRECHNER!$Y$11 -> 1253.465524 | L11: =((L8*TASCHENRECHNER!M19)/1000)*TASCHENRECHNER!$U$11*TASCHENRECHNER!$Y$11 -> 1104.605323 | M11: =((M8*TASCHENRECHNER!N19)/1000)*TASCHENRECHNER!$U$11*TASCHENRECHNER!$Y$11 -> 1114.831675 | N11: =((N8*TASCHENRECHNER!O19)/1000)*TASCHENRECHNER!$U$11*TASCHENRECHNER!$Y$11 -> 1067.435198 | O11: =((O8*TASCHENRECHNER!P19)/1000)*TASCHENRECHNER!$U$11*TASCHENRECHNER!$Y$11 -> 1077.764721 | P11: =((P8*TASCHENRECHNER!Q19)/1000)*TASCHENRECHNER!$U$11*TASCHENRECHNER!$Y$11 -> 1147.745692 | Q11: =((Q8*TASCHENRECHNER!R19)/1000)*TASCHENRECHNER!$U$11*TASCHENRECHNER!$Y$11 -> 960.4749924 | R11: =((R8*TASCHENRECHNER!S19)/1000)*TASCHENRECHNER!$U$11*TASCHENRECHNER!$Y$11 -> 968.6798705 | S11: =((S8*TASCHENRECHNER!T19)/1000)*TASCHENRECHNER!$U$11*TASCHENRECHNER!$Y$11 -> 918.425323 | T11: =((T8*TASCHENRECHNER!U19)/1000)*TASCHENRECHNER!$U$11*TASCHENRECHNER!$Y$11 -> 916.7006497 | U11: =((U8*TASCHENRECHNER!V19)/1000)*TASCHENRECHNER!$U$11*TASCHENRECHNER!$Y$11 -> 931.0497178 | V11: =((V8*TASCHENRECHNER!W19)/1000)*TASCHENRECHNER!$U$11*TASCHENRECHNER!$Y$11 -> 847.9364013 | W11: =((W8*TASCHENRECHNER!X19)/1000)*TASCHENRECHNER!$U$11*TASCHENRECHNER!$Y$11 -> 890.2962016 | X11: =((X8*TASCHENRECHNER!Y19)/1000)*TASCHENRECHNER!$U$11*TASCHENRECHNER!$Y$11 -> 835.8015363 | Y11: =((Y8*TASCHENRECHNER!Z19)/1000)*TASCHENRECHNER!$U$11*TASCHENRECHNER!$Y$11 -> 846.2981006 | Z11: =((Z8*TASCHENRECHNER!AA19)/1000)*TASCHENRECHNER!$U$11*TASCHENRECHNER!$Y$11 -> 917.1060927 | AA11: =((AA8*TASCHENRECHNER!AB19)/1000)*TASCHENRECHNER!$U$11*TASCHENRECHNER!$Y$11 -> 745.2836682 | AB11: =((AB8*TASCHENRECHNER!AC19)/1000)*TASCHENRECHNER!$U$11*TASCHENRECHNER!$Y$11 -> 781.5722332 | AC11: =((AC8*TASCHENRECHNER!AD19)/1000)*TASCHENRECHNER!$U$11*TASCHENRECHNER!$Y$11 -> 725.2954806 | AD11: =((AD8*TASCHENRECHNER!AE19)/1000)*TASCHENRECHNER!$U$11*TASCHENRECHNER!$Y$11 -> 734.2826839 | AE11: =((AE8*TASCHENRECHNER!AF19)/1000)*TASCHENRECHNER!$U$11*TASCHENRECHNER!$Y$11 -> 821.34884
B12: JÄHRLICHE ENERGIEKOSTEN PRO LEUCHTE | F12: EURO | G12: =(G11/G8)*TASCHENRECHNER!$AD$11 -> 33.1695 | H12: =(H11/H8)*TASCHENRECHNER!$AD$11 -> 25.7985 | I12: =(I11/I8)*TASCHENRECHNER!$AD$11 -> 16.38 | J12: =(J11/J8)*TASCHENRECHNER!$AD$11 -> 14.3325 | K12: =(K11/K8)*TASCHENRECHNER!$AD$11 -> 11.0565 | L12: =(L11/L8)*TASCHENRECHNER!$AD$11 -> 11.0565 | M12: =(M11/M8)*TASCHENRECHNER!$AD$11 -> 11.0565 | N12: =(N11/N8)*TASCHENRECHNER!$AD$11 -> 10.2375 | O12: =(O11/O8)*TASCHENRECHNER!$AD$11 -> 10.2375 | P12: =(P11/P8)*TASCHENRECHNER!$AD$11 -> 11.0565 | Q12: =(Q11/Q8)*TASCHENRECHNER!$AD$11 -> 10.2375 | R12: =(R11/R8)*TASCHENRECHNER!$AD$11 -> 10.2375 | S12: =(S11/S8)*TASCHENRECHNER!$AD$11 -> 8.5995 | T12: =(T11/T8)*TASCHENRECHNER!$AD$11 -> 8.5995 | U12: =(U11/U8)*TASCHENRECHNER!$AD$11 -> 10.2375 | V12: =(V11/V8)*TASCHENRECHNER!$AD$11 -> 10.2375 | W12: =(W11/W8)*TASCHENRECHNER!$AD$11 -> 10.2375 | X12: =(X11/X8)*TASCHENRECHNER!$AD$11 -> 8.5995 | Y12: =(Y11/Y8)*TASCHENRECHNER!$AD$11 -> 8.5995 | Z12: =(Z11/Z8)*TASCHENRECHNER!$AD$11 -> 10.2375 | AA12: =(AA11/AA8)*TASCHENRECHNER!$AD$11 -> 8.5995 | AB12: =(AB11/AB8)*TASCHENRECHNER!$AD$11 -> 8.5995 | AC12: =(AC11/AC8)*TASCHENRECHNER!$AD$11 -> 7.7805 | AD12: =(AD11/AD8)*TASCHENRECHNER!$AD$11 -> 7.7805 | AE12: =(AE11/AE8)*TASCHENRECHNER!$AD$11 -> 8.5995
B13: GESAMTJÄHRLICHE ENERGIEKOSTEN DER BELEUCHTUNG | G13: =G12*G8 -> 946.2130937 | H13: =H12*H8 -> 668.2402308 | I13: =I12*I8 -> 488.3167922 | J13: 387.7674495 | K13: 313.3663809 | L13: 276.1513307 | M13: 278.7079187 | N13: 266.8587994 | O13: 269.4411802 | P13: 286.9364229 | Q13: 240.1187481 | R13: 242.1699676 | S13: 229.6063307 | T13: 229.1751624 | U13: 232.7624294 | V13: 211.9841003 | W13: 222.5740504 | X13: 208.9503841 | Y13: 211.5745252 | Z13: 229.2765232 | AA13: 186.3209171 | AB13: 195.3930583 | AC13: 181.3238702 | AD13: 183.570671 | AE13: 205.33721
B14: BELEUCHTUNG GESAMTINVESTITION + BETRIEBSKOSTEN IM GEGEBENEN ZEITRAUM | G14: =G10+(G13*$B$4) -> 6818.342604 | H14: =H10+(H13*$B$4) -> 5175.044439 | I14: 4360.865712 | J14: 3625.250263 | K14: 3580.73488 | L14: 3205.443462 | M14: 3361.157253 | N14: 3373.694761 | O14: 3564.2561 | P14: 3953.47603 | Q14: 3035.640437 | R14: 3179.848391 | S14: 3300.035312 | T14: 3453.737255 | U14: 3465.573949 | V14: 2742.075163 | W14: 2987.764481 | X14: 3076.049976 | Y14: 3237.696702 | Z14: 3458.464185 | AA14: 2981.243005 | AB14: 3262.731204 | AC14: 3348.519714 | AD14: 3507.979959 | AE14: 3834.704333
B15: * Dieser Rechner soll dem Benutzer einen Näherungswert für die optischen und elektrischen Durchschnittsdaten, die Investitions- und Betriebskosten (Energie) der Leuchten und eine geschätzte Kapitalrendite alternativer Beleuchtungssysteme durch Energieeinsparungen im Vergleich zu LIBUS liefern. Die angegebenen Daten (außer denen von LIBUS) können nicht als spezifische Informationen über eine bestimmte Leuchtenmarke bewertet werden.
